[Event "48th Indian U15-ch Girls 2023"]
[Site "Jalgaon"]
[Date "2023.12.29"]
[Round "4.2"]
[White "Saparya Ghosh"]
[Black "Shubhi Gupta"]
[Result "1/2-1/2"]
[WhiteElo "1662"]
[BlackElo "1902"]
[PlyCount "189"]
[EventDate "2023.12.30"]
[EventType "swiss"]
[EventCountry "IND"]
[TimeControl "5400+30"]

1. d4 {[%emt 0:01:42]} d5 {[%emt 0:01:57]} 2. c4 {[%emt 0:00:06]} e6 {[%emt 0:00:12]} 3. Nc3 {[%emt 0:00:03]} Nf6 {[%emt 0:00:32]} 4. cxd5 {[%emt 0:00:07]} exd5 {[%emt 0:00:07]} 5. Bg5 {[%emt 0:00:08]} c6 {[%emt 0:02:06]} 6. e3 {[%emt 0:00:06]} Bf5 {[%emt 0:00:48]} 7. Qb3 {[%emt 0:01:56]} Qb6 {[%emt 0:01:51]} 8. Bxf6 {[%emt 0:03:36]} gxf6 {[%emt 0:00:10]} 9. Nf3 {[%emt 0:00:49]} Nd7 {[%emt 0:01:01]} 10. Be2 {[%emt 0:02:00]} Bd6 {[%emt 0:01:41]} 11. Nh4 {[%emt 0:04:35]} Bg6 {[%emt 0:05:11]} 12. f4 {[%emt 0:01:27]} f5 {[%emt 0:05:07]} 13. Bd3 {[%emt 0:10:47]} O-O {[%emt 0:00:30]} 14. Nxf5 {[%emt 0:00:30]} Bxf5 {[%emt 0:18:23]} 15. Bxf5 {[%emt 0:10:20]} Rfe8 {[%emt 0:10:45]} 16. O-O {[%emt 0:17:12]} Nf6 {[%emt 0:00:00]} 17. Rae1 {[%emt 0:01:05]} Bb4 {[%emt 0:00:00]} 18. Qc2 {[%emt 0:02:30]} Bxc3 {[%emt 0:00:00]} 19. bxc3 {[%emt 0:03:22]} Ne4 {[%emt 0:09:13]} 20. Qe2 {[%emt 0:07:04]} Nf6 {[%emt 0:00:00]} 21. Rf3 {[%emt 0:00:57]} Kh8 {[%emt 0:00:00]} 22. Rh3 {[%emt 0:00:53]} Rg8 {[%emt 0:00:00]} 23. Qf2 {[%emt 0:02:25]} Rg7 {[%emt 0:00:14]} 24. Rh6 {[%emt 0:01:43]} Ng4 {[%emt 0:00:54]} 25. Bxg4 {[%emt 0:00:38]} Rxg4 {[%emt 0:00:05]} 26. Qc2 {[%emt 0:00:43]} Rg7 {[%emt 0:00:21]} 27. Kh1 {[%emt 0:01:37]} Rag8 {[%emt 0:02:55]} 28. g4 {[%emt 0:00:10]} Qd8 {[%emt 0:01:43]} 29. Rg1 {[%emt 0:01:04]} Qe7 {[%emt 0:03:05]} 30. Rg3 {[%emt 0:00:26]} Rg6 {[%emt 0:02:08]} 31. Rgh3 {[%emt 0:02:45]} Rxh6 {[%emt 0:00:38]} 32. Rxh6 {[%emt 0:00:04]} Rg7 {[%emt 0:00:28]} 33. Qd3 {[%emt 0:02:10]} Qa3 {[%emt 0:00:31]} 34. Qc2 {[%emt 0:00:20]} Qa6 {[%emt 0:00:32]} 35. h3 {[%emt 0:18:45]} Qf1+ {[%emt 0:00:10]} 36. Kh2 {[%emt 0:00:04]} Qf3 {[%emt 0:00:07]} 37. Qd2 {[%emt 0:00:58]} Kg8 {[%emt 0:02:25]} 38. Rh5 {[%emt 0:03:44]} f6 {[%emt 0:00:22]} 39. Rf5 {[%emt 0:00:27]} Re7 {[%emt 0:01:26]} 40. Qg2 {[%emt 0:00:36]} Rxe3 {[%emt 0:00:23]} 41. Qxf3 {[%emt 0:00:32]} Rxf3 {[%emt 0:00:06]} 42. Rxf6 {[%emt 0:00:09]} Rxc3 {[%emt 0:02:07]} 43. Rd6 {[%emt 0:00:20]} Rc2+ {[%emt 0:01:44]} 44. Kg3 {[%emt 0:00:08]} Rxa2 {[%emt 0:00:07]} 45. Rd8+ {[%emt 0:00:04]} Kg7 {[%emt 0:00:45]} 46. Rd7+ {[%emt 0:00:03]} Kg8 {[%emt 0:00:03]} 47. Rxb7 {[%emt 0:00:27]} a5 {[%emt 0:01:19]} 48. Rb6 {[%emt 0:00:30]} Rd2 {[%emt 0:01:01]} 49. Rxc6 {[%emt 0:00:34]} Rxd4 {[%emt 0:00:04]} 50. Rc5 {[%emt 0:00:59]} a4 {[%emt 0:00:02]} 51. Ra5 {[%emt 0:00:15]} Kf7 {[%emt 0:00:15]} 52. g5 {[%emt 0:00:38]} Ke6 {[%emt 0:01:31]} 53. Kg4 {[%emt 0:00:14]} Rb4 {[%emt 0:00:27]} 54. Ra6+ {[%emt 0:00:18]} Kf7 {[%emt 0:00:16]} 55. Kf5 {[%emt 0:00:37]} d4 {[%emt 0:00:10]} 56. Ra7+ {[%emt 0:00:22]} Kg8 {[%emt 0:00:08]} 57. Ra8+ {[%emt 0:01:09]} Kf7 {[%emt 0:00:18]} 58. Ra7+ {[%emt 0:00:09]} Kg8 {[%emt 0:00:04]} 59. Kf6 {[%emt 0:00:37]} Rb6+ {[%emt 0:01:36]} 60. Ke5 {[%emt 0:00:11]} Rb4 {[%emt 0:00:18]} 61. Rd7 {[%emt 0:01:06]} Rb5+ {[%emt 0:01:37]} 62. Kf6 {[%emt 0:01:16]} Rb6+ {[%emt 0:00:03]} 63. Ke7 {[%emt 0:00:52]} Rb5 {[%emt 0:03:49]} 64. Rxd4 {[%emt 0:00:26]} a3 {[%emt 0:00:03]} 65. Ra4 {[%emt 0:00:13]} Rb7+ {[%emt 0:00:05]} 66. Kf6 {[%emt 0:00:23]} Rb6+ {[%emt 0:00:04]} 67. Ke5 {[%emt 0:00:37]} Rb5+ {[%emt 0:00:04]} 68. Kf6 {[%emt 0:00:46]} Rb6+ {[%emt 0:00:04]} 69. Kf5 {[%emt 0:00:04]} Rb3 {[%emt 0:00:37]} 70. h4 {[%emt 0:00:11]} Kf7 {[%emt 0:00:20]} 71. Ra7+ {[%emt 0:00:04]} Kg8 {[%emt 0:00:04]} 72. h5 {[%emt 0:00:22]} Rb5+ {[%emt 0:04:02]} 73. Kg4 {[%emt 0:00:15]} Rb3 {[%emt 0:00:06]} 74. g6 {[%emt 0:00:21]} h6 {[%emt 0:00:53]} 75. Kf5 {[%emt 0:01:22]} Kf8 {[%emt 0:00:53]} 76. Kf6 {[%emt 0:01:07]} Rb6+ {[%emt 0:00:08]} 77. Ke5 {[%emt 0:00:29]} Rb5+ {[%emt 0:00:14]} 78. Ke6 {[%emt 0:00:47]} Rb6+ {[%emt 0:00:19]} 79. Kd7 {[%emt 0:00:30]} Rf6 {[%emt 0:01:43]} 80. Rxa3 {[%emt 0:00:32]} Rxf4 {[%emt 0:00:05]} 81. Ke6 {[%emt 0:00:19]} Re4+ {[%emt 0:00:21]} 82. Kf5 {[%emt 0:00:39]} Rh4 {[%emt 0:00:14]} 83. Ra7 {[%emt 0:00:27]} Kg8 {[%emt 0:01:20]} 84. Ra8+ {[%emt 0:00:37]} Kg7 {[%emt 0:00:05]} 85. Ra7+ {[%emt 0:00:05]} Kg8 {[%emt 0:00:07]} 86. Kf6 {[%emt 0:00:52]} Rf4+ {[%emt 0:00:05]} 87. Ke6 {[%emt 0:00:33]} Re4+ {[%emt 0:00:12]} 88. Kf5 {[%emt 0:00:27]} Rh4 {[%emt 0:00:05]} 89. g7 {[%emt 0:00:35]} Rh1 {[%emt 0:00:42]} 90. Kf6 {[%emt 0:00:29]} Rf1+ {[%emt 0:00:05]} 91. Kg6 {[%emt 0:00:24]} Rg1+ {[%emt 0:00:08]} 92. Kf6 {[%emt 0:00:29]} Rf1+ {[%emt 0:00:06]} 93. Kg6 {[%emt 0:00:30]} Rg1+ {[%emt 0:00:05]} 94. Kxh6 {[%emt 0:00:32]} Rg6+ {[%emt 0:00:05]} 95. hxg6 {[%emt 0:00:04]} 1/2-1/2

[Event "48th Indian U15-ch Girls 2023"]
[Site "Jalgaon"]
[Date "2023.12.29"]
[Round "4.3"]
[White "Aamuktha Guntaka"]
[Black "Rajanya Datta"]
[Result "1-0"]
[WhiteElo "1532"]
[BlackElo "1688"]
[PlyCount "123"]
[EventDate "2023.12.30"]
[EventType "swiss"]
[EventCountry "IND"]
[TimeControl "5400+30"]

1. e4 {[%emt 0:05:14]} e5 {[%emt 0:00:26]} 2. Nf3 {[%emt 0:00:09]} Nc6 {[%emt 0:00:07]} 3. Bb5 {[%emt 0:00:06]} a6 {[%emt 0:00:07]} 4. Ba4 {[%emt 0:00:06]} Nf6 {[%emt 0:00:09]} 5. O-O {[%emt 0:00:08]} Nxe4 {[%emt 0:00:08]} 6. d4 {[%emt 0:00:04]} b5 {[%emt 0:00:07]} 7. Bb3 {[%emt 0:00:05]} d5 {[%emt 0:00:03]} 8. dxe5 {[%emt 0:00:07]} Be6 {[%emt 0:00:04]} 9. c3 {[%emt 0:00:38]} Bc5 {[%emt 0:00:07]} 10. Nbd2 {[%emt 0:00:06]} O-O {[%emt 0:00:09]} 11. Bc2 {[%emt 0:00:30]} Nxf2 {[%emt 0:00:16]} 12. Rxf2 {[%emt 0:00:08]} f6 {[%emt 0:00:08]} 13. Nf1 {[%emt 0:03:09]} Bxf2+ {[%emt 0:00:11]} 14. Kxf2 {[%emt 0:00:05]} fxe5 {[%emt 0:00:07]} 15. Kg1 {[%emt 0:00:07]} Bg4 {[%emt 0:08:32]} 16. Bb3 {[%emt 0:08:44]} Ne7 {[%emt 0:05:10]} 17. Bg5 {[%emt 0:10:50]} c6 {[%emt 0:03:49]} 18. Qe2 {[%emt 0:17:12]} Rf5 {[%emt 0:30:33]} 19. Bxe7 {[%emt 0:01:43]} Bxf3 {[%emt 0:05:12]} 20. Bxd8 {[%emt 0:05:48]} Bxe2 {[%emt 0:00:07]} 21. Ng3 {[%emt 0:01:16]} Rf7 {[%emt 0:00:27]} 22. Bb6 {[%emt 0:07:40]} Bd3 {[%emt 0:01:01]} 23. Re1 {[%emt 0:02:12]} Re8 {[%emt 0:05:30]} 24. Nh1 {[%emt 0:11:18]} h6 {[%emt 0:08:25]} 25. Nf2 {[%emt 0:01:03]} Bf5 {[%emt 0:00:10]} 26. Bd1 {[%emt 0:01:46]} Rf6 {[%emt 0:01:57]} 27. Ng4 {[%emt 0:04:29]} Rfe6 {[%emt 0:11:56]} 28. Ne3 {[%emt 0:01:04]} Bd3 {[%emt 0:01:50]} 29. Bc2 {[%emt 0:02:44]} Bxc2 {[%emt 0:00:21]} 30. Nxc2 {[%emt 0:00:04]} Kf7 {[%emt 0:00:45]} 31. Nb4 {[%emt 0:02:01]} g5 {[%emt 0:04:13]} 32. Nxa6 {[%emt 0:01:04]} Rf6 {[%emt 0:05:52]} 33. Nb4 {[%emt 0:04:06]} Kg6 {[%emt 0:00:26]} 34. Rf1 {[%emt 0:03:00]} Rfe6 {[%emt 0:01:59]} 35. Na6 {[%emt 0:02:06]} R6e7 {[%emt 0:00:39]} 36. Bc5 {[%emt 0:02:11]} Rd7 {[%emt 0:00:09]} 37. Nb4 {[%emt 0:01:18]} Re6 {[%emt 0:00:27]} 38. Rd1 {[%emt 0:01:11]} Rf7 {[%emt 0:01:06]} 39. g3 {[%emt 0:01:23]} h5 {[%emt 0:00:35]} 40. Rf1 {[%emt 0:01:11]} Rd7 {[%emt 0:00:29]} 41. Rf2 {[%emt 0:00:32]} Re8 {[%emt 0:02:58]} 42. Kf1 {[%emt 0:01:30]} Re6 {[%emt 0:00:13]} 43. Ke1 {[%emt 0:00:54]} d4 {[%emt 0:00:58]} 44. Rd2 {[%emt 0:00:43]} Kf5 {[%emt 0:00:11]} 45. h3 {[%emt 0:00:35]} Ke4 {[%emt 0:00:19]} 46. cxd4 {[%emt 0:00:28]} Kf3 {[%emt 0:00:50]} 47. Rd3+ {[%emt 0:00:25]} Kg2 {[%emt 0:00:05]} 48. Re3 {[%emt 0:00:43]} Rf7 {[%emt 0:00:37]} 49. dxe5 {[%emt 0:00:30]} Kxh3 {[%emt 0:00:39]} 50. Nc2 {[%emt 0:00:27]} Rd7 {[%emt 0:01:35]} 51. Nd4 {[%emt 0:00:23]} Re8 {[%emt 0:00:09]} 52. Nf5 {[%emt 0:00:36]} Rd5 {[%emt 0:00:17]} 53. Bd6 {[%emt 0:00:31]} Re6 {[%emt 0:00:05]} 54. Ke2 {[%emt 0:00:21]} Kg4 {[%emt 0:01:44]} 55. Ng7 {[%emt 0:00:43]} Rdxd6 {[%emt 0:00:14]} 56. exd6 {[%emt 0:00:09]} Rxd6 {[%emt 0:00:02]} 57. Re4+ {[%emt 0:00:15]} Kxg3 {[%emt 0:00:10]} 58. Nf5+ {[%emt 0:00:04]} Kh3 {[%emt 0:00:26]} 59. Nxd6 {[%emt 0:00:06]} g4 {[%emt 0:00:03]} 60. Kf1 {[%emt 0:00:18]} g3 {[%emt 0:00:05]} 61. Nf5 {[%emt 0:00:10]} c5 {[%emt 0:00:17]} 62. Rh4# {[%emt 0:00:06]} 1-0

[Event "48th Indian U15-ch Girls 2023"]
[Site "Jalgaon"]
[Date "2023.12.29"]
[Round "4.4"]
[White "Sachi Jain"]
[Black "Kumari Prasad Jagriti"]
[Result "1/2-1/2"]
[WhiteElo "1844"]
[BlackElo "1506"]
[PlyCount "140"]
[EventDate "2023.12.30"]
[EventType "swiss"]
[EventCountry "IND"]
[TimeControl "5400+30"]

1. e4 {[%emt 0:01:27]} c5 {[%emt 0:00:10]} 2. Nf3 {[%emt 0:00:11]} g6 {[%emt 0:00:08]} 3. d4 {[%emt 0:00:09]} cxd4 {[%emt 0:00:08]} 4. Nxd4 {[%emt 0:00:07]} Nc6 {[%emt 0:00:09]} 5. f4 {[%emt 0:00:11]} Bg7 {[%emt 0:00:07]} 6. Nf3 {[%emt 0:00:07]} d6 {[%emt 0:00:16]} 7. Bd3 {[%emt 0:00:10]} Nf6 {[%emt 0:00:25]} 8. c3 {[%emt 0:02:06]} Qb6 {[%emt 0:02:02]} 9. Qe2 {[%emt 0:00:21]} O-O {[%emt 0:00:20]} 10. Na3 {[%emt 0:00:54]} a6 {[%emt 0:02:15]} 11. Be3 {[%emt 0:01:06]} Qc7 {[%emt 0:00:29]} 12. O-O {[%emt 0:00:10]} Ng4 {[%emt 0:01:38]} 13. Nc2 {[%emt 0:05:39]} f5 {[%emt 0:05:30]} 14. exf5 {[%emt 0:06:00]} Bxf5 {[%emt 0:00:21]} 15. Bc4+ {[%emt 0:25:11]} Kh8 {[%emt 0:04:30]} 16. h3 {[%emt 0:00:19]} Nxe3 {[%emt 0:31:55]} 17. Nxe3 {[%emt 0:00:10]} Na5 {[%emt 0:01:13]} 18. Bd5 {[%emt 0:02:50]} Bd7 {[%emt 0:06:56]} 19. Ng5 {[%emt 0:02:00]} e6 {[%emt 0:10:18]} 20. Nxe6 {[%emt 0:11:59]} Bxe6 {[%emt 0:00:37]} 21. Bxe6 {[%emt 0:00:02]} Rae8 {[%emt 0:01:26]} 22. Bg4 {[%emt 0:00:10]} Nc4 {[%emt 0:06:33]} 23. Qxc4 {[%emt 0:00:42]} Qb6 {[%emt 0:00:09]} 24. Rae1 {[%emt 0:08:58]} Rxe3 {[%emt 0:00:14]} 25. Rxe3 {[%emt 0:00:12]} Qxe3+ {[%emt 0:00:08]} 26. Kh1 {[%emt 0:00:28]} h5 {[%emt 0:02:19]} 27. Qe2 {[%emt 0:04:50]} Qxe2 {[%emt 0:07:29]} 28. Bxe2 {[%emt 0:00:02]} h4 {[%emt 0:00:59]} 29. Bd3 {[%emt 0:00:17]} Bh6 {[%emt 0:01:41]} 30. Bxg6 {[%emt 0:03:44]} Rxf4 {[%emt 0:00:17]} 31. Kg1 {[%emt 0:01:23]} Rxf1+ {[%emt 0:02:04]} 32. Kxf1 {[%emt 0:00:02]} Bc1 {[%emt 0:00:37]} 33. b3 {[%emt 0:00:04]} Bb2 {[%emt 0:00:19]} 34. c4 {[%emt 0:00:01]} a5 {[%emt 0:00:22]} 35. Ke2 {[%emt 0:00:50]} b6 {[%emt 0:00:33]} 36. Kf3 {[%emt 0:00:13]} Kg7 {[%emt 0:00:46]} 37. Bh5 {[%emt 0:00:46]} Kh6 {[%emt 0:00:44]} 38. Kg4 {[%emt 0:00:11]} Bf6 {[%emt 0:00:24]} 39. Be8 {[%emt 0:01:44]} Bg5 {[%emt 0:00:44]} 40. Kf5 {[%emt 0:00:11]} Be3 {[%emt 0:00:13]} 41. Ke6 {[%emt 0:01:00]} Bc5 {[%emt 0:00:06]} 42. Kf5 {[%emt 0:00:36]} Bd4 {[%emt 0:00:58]} 43. Kg4 {[%emt 0:00:06]} Bf2 {[%emt 0:00:14]} 44. a3 {[%emt 0:00:22]} Be1 {[%emt 0:00:17]} 45. b4 {[%emt 0:00:33]} axb4 {[%emt 0:03:50]} 46. axb4 {[%emt 0:00:02]} Kg7 {[%emt 0:00:12]} 47. Kg5 {[%emt 0:00:16]} Kf8 {[%emt 0:00:13]} 48. Bc6 {[%emt 0:00:06]} Ke7 {[%emt 0:00:09]} 49. Bd5 {[%emt 0:00:11]} Kd8 {[%emt 0:00:17]} 50. b5 {[%emt 0:00:14]} Ke7 {[%emt 0:00:06]} 51. Kf5 {[%emt 0:00:09]} Bg3 {[%emt 0:00:11]} 52. Ke4 {[%emt 0:00:03]} Kf6 {[%emt 0:00:21]} 53. Bb7 {[%emt 0:00:22]} Ke7 {[%emt 0:00:27]} 54. Kd5 {[%emt 0:00:01]} Bf2 {[%emt 0:00:16]} 55. Kc6 {[%emt 0:00:15]} Be3 {[%emt 0:00:19]} 56. Bc8 {[%emt 0:00:25]} Bc5 {[%emt 0:00:53]} 57. Bg4 {[%emt 0:00:05]} Bf2 {[%emt 0:00:26]} 58. Kd5 {[%emt 0:00:08]} Bc5 {[%emt 0:00:09]} 59. Ke4 {[%emt 0:00:16]} Bf2 {[%emt 0:00:11]} 60. Kf3 {[%emt 0:00:03]} Be1 {[%emt 0:00:20]} 61. Kf4 {[%emt 0:00:40]} Bg3+ {[%emt 0:00:27]} 62. Ke4 {[%emt 0:00:05]} Kd8 {[%emt 0:00:27]} 63. c5 {[%emt 0:01:16]} dxc5 {[%emt 0:00:11]} 64. Kd5 {[%emt 0:00:04]} Kc7 {[%emt 0:00:05]} 65. Bf3 {[%emt 0:00:13]} Bf4 {[%emt 0:00:10]} 66. Be2 {[%emt 0:00:14]} Bg3 {[%emt 0:00:06]} 67. Bc4 {[%emt 0:00:05]} Be1 {[%emt 0:00:12]} 68. Ke6 {[%emt 0:00:04]} Bg3 {[%emt 0:00:13]} 69. Ke7 {[%emt 0:01:23]} Bd6+ {[%emt 0:00:06]} 70. Kf6 {[%emt 0:00:04]} Bg3 {[%emt 0:00:03]} 1/2-1/2

[Event "48th Indian U15-ch Girls 2023"]
[Site "Jalgaon"]
[Date "2023.12.29"]
[Round "4.5"]
[White "Nivedita V C"]
[Black "Anupam M Sreekumar"]
[Result "0-1"]
[WhiteElo "1638"]
[BlackElo "1642"]
[PlyCount "76"]
[EventDate "2023.12.30"]
[EventType "swiss"]
[EventCountry "IND"]
[TimeControl "5400+30"]

1. Nf3 {[%emt 0:00:03]} d5 {[%emt 0:00:44]} 2. g3 {[%emt 0:00:02]} Nf6 {[%emt 0:01:04]} 3. Bg2 {[%emt 0:00:05]} g6 {[%emt 0:01:16]} 4. O-O {[%emt 0:00:22]} Bg7 {[%emt 0:00:18]} 5. d3 {[%emt 0:00:45]} O-O {[%emt 0:01:02]} 6. Nbd2 {[%emt 0:00:53]} c6 {[%emt 0:04:20]} 7. e4 {[%emt 0:00:13]} dxe4 {[%emt 0:00:43]} 8. dxe4 {[%emt 0:00:18]} Qc7 {[%emt 0:01:06]} 9. Qe2 {[%emt 0:34:41]} b6 {[%emt 0:18:30]} 10. e5 {[%emt 0:04:27]} Nfd7 {[%emt 0:17:20]} 11. e6 {[%emt 0:00:40]} Nc5 {[%emt 0:00:12]} 12. exf7+ {[%emt 0:00:49]} Rxf7 {[%emt 0:00:03]} 13. Ng5 {[%emt 0:01:14]} Rf8 {[%emt 0:00:30]} 14. Nde4 {[%emt 0:16:36]} Ba6 {[%emt 0:07:05]} 15. c4 {[%emt 0:00:06]} Qe5 {[%emt 0:01:36]} 16. Qg4 {[%emt 0:07:25]} Bc8 {[%emt 0:21:35]} 17. Qd1 {[%emt 0:11:04]} h6 {[%emt 0:04:39]} 18. Bf4 {[%emt 0:06:19]} Qd4 {[%emt 0:03:36]} 19. Nxc5 {[%emt 0:01:01]} hxg5 {[%emt 0:01:26]} 20. Bxb8 {[%emt 0:00:41]} Qxc5 {[%emt 0:01:13]} 21. Bc7 {[%emt 0:00:48]} Be6 {[%emt 0:03:13]} 22. b4 {[%emt 0:06:24]} Qxb4 {[%emt 0:04:03]} 23. Bxc6 {[%emt 0:03:00]} Rac8 {[%emt 0:02:29]} 24. Bd5 {[%emt 0:00:10]} Bxd5 {[%emt 0:03:01]} 25. Qxd5+ {[%emt 0:00:02]} Kh7 {[%emt 0:00:02]} 26. Rab1 {[%emt 0:01:03]} Qa3 {[%emt 0:00:44]} 27. Qd7 {[%emt 0:04:13]} Qc5 {[%emt 0:00:48]} 28. Qh3+ {[%emt 0:00:28]} Bh6 {[%emt 0:00:26]} 29. Rbe1 {[%emt 0:00:37]} Rxc7 {[%emt 0:00:25]} 30. Re2 {[%emt 0:00:08]} Qf5 {[%emt 0:00:32]} 31. Qxf5 {[%emt 0:00:41]} gxf5 {[%emt 0:00:03]} 32. Rfe1 {[%emt 0:00:07]} Rf7 {[%emt 0:00:11]} 33. Re6 {[%emt 0:00:28]} Bg7 {[%emt 0:00:14]} 34. Rc1 {[%emt 0:00:17]} Rf6 {[%emt 0:00:14]} 35. Re5 {[%emt 0:00:07]} Kg6 {[%emt 0:00:19]} 36. Re2 {[%emt 0:00:13]} Rfc6 {[%emt 0:00:08]} 37. Rec2 {[%emt 0:00:04]} Bd4 {[%emt 0:00:12]} 38. a4 {[%emt 0:00:08]} a6 {[%emt 0:00:37]} 0-1

[Event "48th Indian U15-ch Girls 2023"]
[Site "Jalgaon"]
[Date "2023.12.29"]
[Round "4.6"]
[White "Ananya Raman"]
[Black "Sherali Pattnaik"]
[Result "0-1"]
[WhiteElo "1505"]
[BlackElo "1575"]
[PlyCount "124"]
[EventDate "2023.12.30"]
[EventType "swiss"]
[EventCountry "IND"]
[TimeControl "5400+30"]

1. e4 {[%emt 0:02:48]} e6 {[%emt 0:01:50]} 2. d4 {[%emt 0:00:43]} d5 {[%emt 0:00:03]} 3. Nd2 {[%emt 0:00:05]} c5 {[%emt 0:00:09]} 4. Ngf3 {[%emt 0:00:07]} Nf6 {[%emt 0:00:21]} 5. exd5 {[%emt 0:00:57]} exd5 {[%emt 0:00:49]} 6. Bb5+ {[%emt 0:00:36]} Bd7 {[%emt 0:07:37]} 7. Bxd7+ {[%emt 0:02:02]} Nbxd7 {[%emt 0:00:26]} 8. O-O {[%emt 0:01:27]} Be7 {[%emt 0:00:47]} 9. c3 {[%emt 0:09:19]} O-O {[%emt 0:02:46]} 10. dxc5 {[%emt 0:03:42]} Nxc5 {[%emt 0:03:20]} 11. Nb3 {[%emt 0:01:06]} Nce4 {[%emt 0:01:00]} 12. Nbd4 {[%emt 0:01:25]} Re8 {[%emt 0:01:34]} 13. h3 {[%emt 0:06:49]} Rc8 {[%emt 0:03:16]} 14. Re1 {[%emt 0:03:33]} Bf8 {[%emt 0:02:20]} 15. Bf4 {[%emt 0:03:37]} Nd7 {[%emt 0:05:47]} 16. Rc1 {[%emt 0:10:39]} a6 {[%emt 0:10:22]} 17. Bh2 {[%emt 0:06:52]} g6 {[%emt 0:01:29]} 18. Bf4 {[%emt 0:04:59]} Bg7 {[%emt 0:02:46]} 19. Ng5 {[%emt 0:03:07]} Qf6 {[%emt 0:15:45]} 20. Nxe4 {[%emt 0:04:19]} Qxf4 {[%emt 0:00:12]} 21. Ng3 {[%emt 0:09:34]} Rxe1+ {[%emt 0:02:25]} 22. Qxe1 {[%emt 0:00:09]} Bxd4 {[%emt 0:00:03]} 23. Ne2 {[%emt 0:00:06]} Qxf2+ {[%emt 0:00:06]} 24. Qxf2 {[%emt 0:00:04]} Bxf2+ {[%emt 0:00:03]} 25. Kxf2 {[%emt 0:00:05]} Re8 {[%emt 0:01:07]} 26. Rd1 {[%emt 0:03:31]} Nf6 {[%emt 0:01:15]} 27. Nf4 {[%emt 0:04:08]} Re5 {[%emt 0:00:25]} 28. Nd3 {[%emt 0:02:23]} Re7 {[%emt 0:00:05]} 29. Nf4 {[%emt 0:05:08]} Rd7 {[%emt 0:00:14]} 30. Rd4 {[%emt 0:00:19]} Kf8 {[%emt 0:01:19]} 31. Kf3 {[%emt 0:02:09]} Ke8 {[%emt 0:05:37]} 32. g4 {[%emt 0:01:40]} g5 {[%emt 0:04:40]} 33. Ng2 {[%emt 0:00:16]} Ke7 {[%emt 0:05:58]} 34. Ne3 {[%emt 0:02:53]} Kd6 {[%emt 0:00:36]} 35. h4 {[%emt 0:01:31]} h6 {[%emt 0:06:12]} 36. Nf5+ {[%emt 0:00:46]} Ke5 {[%emt 0:00:01]} 37. Nxh6 {[%emt 0:01:52]} gxh4 {[%emt 0:00:01]} 38. g5 {[%emt 0:02:06]} Ne4 {[%emt 0:00:02]} 39. Kg4 {[%emt 0:00:42]} h3 {[%emt 0:01:09]} 40. Kxh3 {[%emt 0:01:03]} Nxg5+ {[%emt 0:00:08]} 41. Kg4 {[%emt 0:00:50]} Ne4 {[%emt 0:00:28]} 42. Nf5 {[%emt 0:00:52]} Nf6+ {[%emt 0:03:34]} 43. Kg5 {[%emt 0:00:06]} Rd8 {[%emt 0:01:02]} 44. Nh6 {[%emt 0:00:08]} Ne4+ {[%emt 0:01:46]} 45. Kg4 {[%emt 0:00:56]} f5+ {[%emt 0:00:54]} 46. Kh5 {[%emt 0:01:20]} Rd7 {[%emt 0:02:30]} 47. Kg6 {[%emt 0:00:34]} Rd6+ {[%emt 0:04:45]} 48. Kg7 {[%emt 0:00:29]} Ng5 {[%emt 0:00:45]} 49. Rd1 {[%emt 0:00:30]} Ne6+ {[%emt 0:00:51]} 50. Kg6 {[%emt 0:00:30]} Nf4+ {[%emt 0:00:17]} 51. Kg7 {[%emt 0:00:22]} Rg6+ {[%emt 0:00:39]} 52. Kh7 {[%emt 0:00:04]} Rg2 {[%emt 0:00:26]} 53. Re1+ {[%emt 0:00:44]} Re2 {[%emt 0:00:02]} 54. Rb1 {[%emt 0:00:50]} Nd3 {[%emt 0:02:42]} 55. Kg6 {[%emt 0:00:29]} Rg2+ {[%emt 0:00:31]} 56. Kh5 {[%emt 0:00:28]} Nf4+ {[%emt 0:00:28]} 57. Kh4 {[%emt 0:00:07]} Rh2+ {[%emt 0:00:01]} 58. Kg3 {[%emt 0:00:05]} Rh3+ {[%emt 0:00:06]} 59. Kf2 {[%emt 0:00:08]} Rxh6 {[%emt 0:00:01]} 60. Re1+ {[%emt 0:00:27]} Kf6 {[%emt 0:00:24]} 61. Kf3 {[%emt 0:00:18]} Nd3 {[%emt 0:00:02]} 62. Rd1 {[%emt 0:00:26]} Ne5+ {[%emt 0:00:23]} 0-1

[Event "48th Indian U15-ch Girls 2023"]
[Site "Jalgaon"]
[Date "2023.12.29"]
[Round "4.7"]
[White "Hanya Shah"]
[Black "Sneha Halder"]
[Result "0-1"]
[WhiteElo "1429"]
[BlackElo "1766"]
[PlyCount "100"]
[EventDate "2023.12.30"]
[EventType "swiss"]
[EventCountry "IND"]
[TimeControl "5400+30"]

1. c4 {[%emt 0:00:22]} e5 {[%emt 0:00:16]} 2. Nc3 {[%emt 0:00:25]} Nc6 {[%emt 0:00:09]} 3. Nf3 {[%emt 0:00:24]} f5 {[%emt 0:00:35]} 4. d4 {[%emt 0:01:47]} e4 {[%emt 0:00:22]} 5. Ng1 {[%emt 0:00:46]} Nf6 {[%emt 0:00:17]} 6. Nh3 {[%emt 0:02:11]} d5 {[%emt 0:03:20]} 7. c5 {[%emt 0:05:20]} b6 {[%emt 0:07:22]} 8. cxb6 {[%emt 0:00:30]} axb6 {[%emt 0:00:09]} 9. Bg5 {[%emt 0:00:23]} Bb4 {[%emt 0:00:42]} 10. e3 {[%emt 0:11:56]} Bxc3+ {[%emt 0:03:43]} 11. bxc3 {[%emt 0:00:36]} h6 {[%emt 0:02:35]} 12. Bxf6 {[%emt 0:02:06]} Qxf6 {[%emt 0:00:34]} 13. Nf4 {[%emt 0:01:14]} Ne7 {[%emt 0:00:36]} 14. Qb3 {[%emt 0:10:21]} Qd6 {[%emt 0:05:26]} 15. c4 {[%emt 0:09:30]} O-O {[%emt 0:03:00]} 16. cxd5 {[%emt 0:03:34]} g5 {[%emt 0:03:00]} 17. Ne6 {[%emt 0:02:23]} Bxe6 {[%emt 0:00:48]} 18. dxe6 {[%emt 0:00:08]} Ra3 {[%emt 0:00:48]} 19. Qb2 {[%emt 0:02:08]} f4 {[%emt 0:03:57]} 20. exf4 {[%emt 0:03:15]} Rxf4 {[%emt 0:15:25]} 21. g3 {[%emt 0:04:21]} Rf6 {[%emt 0:00:48]} 22. Bh3 {[%emt 0:01:20]} Rd3 {[%emt 0:03:24]} 23. O-O {[%emt 0:02:09]} Rxd4 {[%emt 0:00:15]} 24. Rad1 {[%emt 0:03:56]} Nc6 {[%emt 0:04:35]} 25. Kh1 {[%emt 0:09:25]} Kf8 {[%emt 0:02:32]} 26. Rc1 {[%emt 0:01:15]} Ne5 {[%emt 0:14:31]} 27. Rxc7 {[%emt 0:01:12]} e3 {[%emt 0:00:39]} 28. Rc8+ {[%emt 0:01:20]} Ke7 {[%emt 0:01:09]} 29. Qb5 {[%emt 0:01:48]} Qd5+ {[%emt 0:00:06]} 30. Qxd5 {[%emt 0:00:05]} Rxd5 {[%emt 0:00:03]} 31. Rc7+ {[%emt 0:01:15]} Ke8 {[%emt 0:00:21]} 32. fxe3 {[%emt 0:11:01]} Rxf1+ {[%emt 0:00:32]} 33. Bxf1 {[%emt 0:00:01]} Rd1 {[%emt 0:08:35]} 34. Kg1 {[%emt 0:00:19]} Ng4 {[%emt 0:02:41]} 35. e4 {[%emt 0:00:25]} Ne3 {[%emt 0:02:42]} 36. Rf7 {[%emt 0:00:09]} g4 {[%emt 0:00:27]} 37. a4 {[%emt 0:01:47]} Ra1 {[%emt 0:00:40]} 38. e5 {[%emt 0:01:29]} h5 {[%emt 0:01:44]} 39. Rf4 {[%emt 0:01:20]} Ke7 {[%emt 0:00:57]} 40. Rf6 {[%emt 0:00:07]} Rb1 {[%emt 0:00:19]} 41. Rf4 {[%emt 0:00:49]} Kxe6 {[%emt 0:00:13]} 42. Rf6+ {[%emt 0:00:06]} Kxe5 {[%emt 0:00:21]} 43. Rf4 {[%emt 0:00:12]} Kd5 {[%emt 0:00:35]} 44. Rf6 {[%emt 0:00:12]} Kc5 {[%emt 0:00:12]} 45. Rf4 {[%emt 0:00:14]} Rxf1+ {[%emt 0:02:02]} 46. Rxf1 {[%emt 0:00:06]} Nxf1 {[%emt 0:00:03]} 47. Kxf1 {[%emt 0:00:07]} Kb4 {[%emt 0:00:00]} 48. Ke2 {[%emt 0:00:11]} Kxa4 {[%emt 0:00:04]} 49. Kd3 {[%emt 0:00:00]} b5 {[%emt 0:00:05]} 50. Kc2 {[%emt 0:00:05]} Ka3 {[%emt 0:00:14]} 0-1